[Event "FIDE World Junior U20-ch Girls 2025"]
[Site "Petrovac"]
[Date "2025.03.02"]
[Round "6.38"]
[White "Nguyen Thien Ngan"]
[Black "Romany, Joy"]
[Result "1-0"]
[Annotator "ChessBase"]
[ECO "B41"]
[WhiteElo "1923"]
[BlackElo "2025"]
[PlyCount "137"]
[EventDate "2025.02.23"]
[EventType "swiss"]
[EventCountry "MNE"]
[SourceTitle "playchess.com"]
[Source "ChessBase"]
[SourceQuality "1"]
[TimeControl "40/5400+30:1800+30"]

1. e4 {[%emt 0:00:03]} c5 {[%emt 0:01:03]} 2. Nf3 {[%emt 0:00:08]} a6 {[%emt 0:00:05]} 3. c4 {[%emt 0:00:20]} e6 {[%emt 0:00:08]} 4. d4 {[%emt 0:00:38]} cxd4 {[%emt 0:00:05]} 5. Nxd4 {[%emt 0:00:07]} Nf6 {[%emt 0:00:03]} 6. Nc3 {[%emt 0:00:39]} Bb4 {[%emt 0:00:12]} 7. Bd3 {[%emt 0:00:32]} Nc6 {[%emt 0:00:11]} 8. Nxc6 {[%emt 0:00:51]} dxc6 {[%emt 0:00:08]} 9. O-O {[%emt 0:00:57]} e5 {[%emt 0:00:16]} 10. a3 {[%emt 0:02:57]} Bc5 {[%emt 0:00:41]} 11. Bg5 {[%emt 0:09:28]} h6 {[%emt 0:00:48]} 12. Bh4 {[%emt 0:03:47]} g5 {[%emt 0:02:43]} 13. Bg3 {[%emt 0:01:48]} Qe7 {[%emt 0:00:50]} 14. Kh1 {[%emt 0:06:05]} h5 {[%emt 0:02:51]} 15. f3 {[%emt 0:01:32]} h4 {[%emt 0:08:20]} 16. Bf2 {[%emt 0:02:30]} Bxf2 {[%emt 0:00:49]} 17. Rxf2 {[%emt 0:00:07]} Nh5 {[%emt 0:01:37]} 18. b4 {[%emt 0:07:02]} a5 {[%emt 0:11:56]} 19. b5 {[%emt 0:18:14]} Qc5 {[%emt 0:04:06]} 20. Kg1 {[%emt 0:03:29]} Be6 {[%emt 0:15:19]} 21. Na4 {[%emt 0:09:07]} Qd4 {[%emt 0:00:49]} 22. Bf1 {[%emt 0:02:06]} Qxd1 {[%emt 0:08:42]} 23. Rxd1 {[%emt 0:00:09]} cxb5 {[%emt 0:00:13]} 24. cxb5 {[%emt 0:14:25]} Bb3 {[%emt 0:00:32]} 25. Nb6 {[%emt 0:00:09]} Bxd1 {[%emt 0:01:46]} 26. Nxa8 {[%emt 0:00:06]} Ke7 {[%emt 0:00:22]} 27. Nb6 {[%emt 0:01:41]} Bb3 {[%emt 0:10:09]} 28. Bc4 {[%emt 0:02:05]} a4 {[%emt 0:06:44]} 29. Bxb3 {[%emt 0:02:10]} axb3 {[%emt 0:00:01]} 30. Rb2 {[%emt 0:00:44]} Nf4 {[%emt 0:01:01]} 31. g3 {[%emt 0:06:52]} Ne6 {[%emt 0:01:26]} 32. Rxb3 {[%emt 0:00:36]} Nd4 {[%emt 0:00:20]} 33. Rd3 {[%emt 0:00:21]} Rd8 {[%emt 0:05:35]} 34. Nd5+ {[%emt 0:02:20]} Kd6 {[%emt 0:00:16]} 35. b6 {[%emt 0:00:47]} f5 {[%emt 0:02:25]} 36. Kg2 {[%emt 0:02:05]} g4 {[%emt 0:00:08]} 37. Nc3 {[%emt 0:01:12]} gxf3+ {[%emt 0:00:49]} 38. Kf2 {[%emt 0:00:07]} hxg3+ {[%emt 0:00:48]} 39. hxg3 {[%emt 0:00:33]} fxe4 {[%emt 0:00:34]} 40. Nxe4+ {[%emt 0:00:18]} Kd5 {[%emt 0:10:13]} 41. Re3 {[%emt 0:16:11]} Rc8 {[%emt 0:16:32]} 42. Nc3+ {[%emt 0:06:51]} Ke6 {[%emt 0:03:31]} 43. a4 {[%emt 0:01:50]} Rc5 {[%emt 0:03:42]} 44. g4 {[%emt 0:01:00]} Ra5 {[%emt 0:04:48]} 45. Ne4 {[%emt 0:01:25]} Kd5 {[%emt 0:03:43]} 46. g5 {[%emt 0:01:41]} Nf5 {[%emt 0:02:16]} 47. Re1 {[%emt 0:03:41]} Ra8 {[%emt 0:01:44]} 48. Kxf3 {[%emt 0:00:30]} Nd4+ {[%emt 0:01:30]} 49. Kg4 {[%emt 0:00:28]} Rf8 {[%emt 0:00:09]} 50. Nf6+ {[%emt 0:00:17]} Ke6 {[%emt 0:00:41]} 51. Rxe5+ {[%emt 0:01:27]} Kf7 {[%emt 0:01:25]} 52. Rd5 {[%emt 0:00:14]} Ne6 {[%emt 0:00:06]} 53. Nd7 {[%emt 0:01:24]} Ra8 {[%emt 0:00:36]} 54. a5 {[%emt 0:00:17]} Ke7 {[%emt 0:00:13]} 55. Nf6 {[%emt 0:00:52]} Kf7 {[%emt 0:00:15]} 56. Ne4 {[%emt 0:00:34]} Kg6 {[%emt 0:00:58]} 57. Rd6 {[%emt 0:00:34]} Kf7 {[%emt 0:00:02]} 58. Rd7+ {[%emt 0:00:25]} Kg6 {[%emt 0:00:03]} 59. Re7 {[%emt 0:00:32]} Nd4 {[%emt 0:01:13]} 60. Rxb7 {[%emt 0:00:34]} Rxa5 {[%emt 0:00:05]} 61. Re7 {[%emt 0:00:27]} Rb5 {[%emt 0:01:20]} 62. b7 {[%emt 0:00:31]} Nf5 {[%emt 0:00:06]} 63. Rc7 {[%emt 0:00:33]} Ne3+ {[%emt 0:00:11]} 64. Kf3 {[%emt 0:00:23]} Nd5 {[%emt 0:01:01]} 65. Rd7 {[%emt 0:00:36]} Rb3+ {[%emt 0:00:53]} 66. Ke2 {[%emt 0:00:26]} Rb4 {[%emt 0:00:38]} 67. Kd3 {[%emt 0:00:37]} Nf4+ {[%emt 0:00:35]} 68. Kc3 {[%emt 0:00:27]} Rb6 {[%emt 0:00:09]} 69. Rd6+ {[%emt 0:00:27]} 1-0

[Event "FIDE World Junior U20-ch Girls 2025"]
[Site "Petrovac"]
[Date "2025.03.02"]
[Round "6.39"]
[White "Cornileau, Juliette"]
[Black "Sovetbekova, Nurai"]
[Result "1-0"]
[Annotator "NA"]
[ECO "B90"]
[WhiteElo "2144"]
[BlackElo "1940"]
[PlyCount "59"]
[EventDate "2025.02.23"]
[EventType "swiss"]
[EventCountry "MNE"]
[SourceTitle "playchess.com"]
[Source "ChessBase"]
[SourceQuality "1"]
[TimeControl "40/5400+30:1800+30"]

1. e4 {[%emt 0:00:44]} c5 {[%emt 0:00:07]} 2. Nf3 {[%emt 0:00:04]} d6 {[%emt 0:00:05]} 3. d4 {[%emt 0:00:04]} cxd4 {[%emt 0:00:05]} 4. Nxd4 {[%emt 0:00:03]} Nf6 {[%emt 0:00:10]} 5. Nc3 {[%emt 0:00:02]} a6 {[%emt 0:00:06]} 6. Bd3 {[%emt 0:00:10]} e5 {[%emt 0:01:05]} 7. Nde2 {[%emt 0:00:04]} Be7 {[%emt 0:04:23]} 8. O-O {[%emt 0:00:22]} b5 {[%emt 0:01:30]} 9. Ng3 {[%emt 0:05:02]} O-O {[%emt 0:03:00]} 10. f4 {[%emt 0:26:32]} Nc6 {[%emt 0:18:42]} 11. Nd5 {[%emt 0:09:53]} Nxd5 {[%emt 0:19:00]} 12. exd5 {[%emt 0:00:53]} Nb4 {[%emt 0:00:04]} 13. fxe5 {[%emt 0:13:03]} Nxd3 {[%emt 0:02:19]} 14. Qxd3 {[%emt 0:01:27]} dxe5 {[%emt 0:00:08]} 15. Be3 {[%emt 0:04:10]} Bb7 {[%emt 0:05:50]} 16. Rad1 {[%emt 0:01:02]} Bd6 {[%emt 0:06:19]} 17. Nf5 {[%emt 0:13:02]} g6 {[%emt 0:05:42]} 18. Bh6 {[%emt 0:02:53]} Re8 {[%emt 0:00:56]} 19. Qg3 {[%emt 0:03:50]} Bc8 {[%emt 0:08:14]} 20. Bg5 {[%emt 0:00:58]} Qb6+ {[%emt 0:06:09]} 21. Be3 {[%emt 0:00:16]} Bc5 {[%emt 0:00:01]} 22. Nh6+ {[%emt 0:01:02]} Kh8 {[%emt 0:00:40]} 23. Nxf7+ {[%emt 0:00:19]} Kg7 {[%emt 0:00:03]} 24. Bxc5 {[%emt 0:00:55]} Qxc5+ {[%emt 0:00:01]} 25. Kh1 {[%emt 0:00:07]} Ra7 {[%emt 0:04:06]} 26. b4 {[%emt 0:06:29]} Qxb4 {[%emt 0:05:07]} 27. Nxe5 {[%emt 0:05:41]} Qd6 {[%emt 0:01:03]} 28. Qf2 {[%emt 0:01:17]} Rc7 {[%emt 0:02:08]} 29. Nf7 {[%emt 0:00:48]} Qc5 {[%emt 0:06:47]} 30. Qf6+ {[%emt 0:00:14]} 1-0

[Event "FIDE World Junior U20-ch Girls 2025"]
[Site "Petrovac"]
[Date "2025.03.02"]
[Round "6.40"]
[White "Bochnickova, Simona"]
[Black "Li, Anna Sofie"]
[Result "1-0"]
[Annotator "ChessBase"]
[ECO "C54"]
[WhiteElo "2171"]
[BlackElo "2016"]
[PlyCount "85"]
[EventDate "2025.02.23"]
[EventType "swiss"]
[EventCountry "MNE"]
[SourceTitle "playchess.com"]
[Source "ChessBase"]
[SourceQuality "1"]
[TimeControl "40/5400+30:1800+30"]

1. e4 {[%emt 0:00:01]} e5 {[%emt 0:00:07]} 2. Nf3 {[%emt 0:00:05]} Nc6 {[%emt 0:00:04]} 3. Bc4 {[%emt 0:00:04]} Nf6 {[%emt 0:00:08]} 4. d3 {[%emt 0:00:04]} Bc5 {[%emt 0:00:06]} 5. c3 {[%emt 0:00:10]} a6 {[%emt 0:00:05]} 6. Bb3 {[%emt 0:00:11]} d6 {[%emt 0:00:09]} 7. O-O {[%emt 0:00:22]} Ba7 {[%emt 0:00:23]} 8. Nbd2 {[%emt 0:00:22]} O-O {[%emt 0:00:21]} 9. h3 {[%emt 0:00:11]} h6 {[%emt 0:00:13]} 10. Re1 {[%emt 0:00:09]} Re8 {[%emt 0:00:14]} 11. Nf1 {[%emt 0:00:44]} Be6 {[%emt 0:01:52]} 12. Be3 {[%emt 0:03:31]} Bxe3 {[%emt 0:02:21]} 13. Nxe3 {[%emt 0:00:56]} d5 {[%emt 0:02:31]} 14. exd5 {[%emt 0:09:16]} Nxd5 {[%emt 0:01:59]} 15. Ng4 {[%emt 0:12:10]} Bxg4 {[%emt 0:06:36]} 16. hxg4 {[%emt 0:00:05]} Qd7 {[%emt 0:05:40]} 17. d4 {[%emt 0:10:42]} exd4 {[%emt 0:21:19]} 18. Rxe8+ {[%emt 0:00:15]} Rxe8 {[%emt 0:00:08]} 19. Nxd4 {[%emt 0:00:05]} Nf6 {[%emt 0:15:28]} 20. Nxc6 {[%emt 0:08:43]} Qxc6 {[%emt 0:03:03]} 21. Qf3 {[%emt 0:11:46]} Qxf3 {[%emt 0:07:58]} 22. gxf3 {[%emt 0:00:04]} g6 {[%emt 0:06:34]} 23. Rd1 {[%emt 0:02:51]} c6 {[%emt 0:02:31]} 24. Kg2 {[%emt 0:06:06]} Kg7 {[%emt 0:02:09]} 25. Rd2 {[%emt 0:05:05]} Re7 {[%emt 0:01:07]} 26. Kg3 {[%emt 0:04:41]} h5 {[%emt 0:02:12]} 27. g5 {[%emt 0:08:55]} Nd7 {[%emt 0:00:55]} 28. Bc2 {[%emt 0:00:32]} Nc5 {[%emt 0:06:11]} 29. b4 {[%emt 0:02:11]} Rd7 {[%emt 0:03:51]} 30. Re2 {[%emt 0:03:24]} Ne6 {[%emt 0:00:14]} 31. f4 {[%emt 0:00:23]} Rd6 {[%emt 0:03:39]} 32. Re5 {[%emt 0:03:06]} b6 {[%emt 0:04:16]} 33. f5 {[%emt 0:03:10]} Nxg5 {[%emt 0:02:01]} 34. fxg6 {[%emt 0:00:27]} f6 {[%emt 0:00:23]} 35. Re7+ {[%emt 0:01:13]} Kf8 {[%emt 0:00:33]} 36. g7+ {[%emt 0:00:24]} Kg8 {[%emt 0:00:06]} 37. Bb3+ {[%emt 0:00:05]} Rd5 {[%emt 0:00:15]} 38. f4 {[%emt 0:03:29]} Nf7 {[%emt 0:00:27]} 39. Bxd5 {[%emt 0:00:06]} cxd5 {[%emt 0:00:04]} 40. Kh4 {[%emt 0:00:45]} Kxg7 {[%emt 0:00:30]} 41. Kxh5 {[%emt 0:30:30]} a5 {[%emt 0:30:51]} 42. bxa5 {[%emt 0:01:16]} bxa5 {[%emt 0:00:23]} 43. Rd7 {[%emt 0:00:06]} 1-0

[Event "FIDE World Junior U20-ch Girls 2025"]
[Site "Petrovac"]
[Date "2025.03.02"]
[Round "6.41"]
[White "Hernandez, Lexie Grace"]
[Black "Vujatovic, Irina"]
[Result "1-0"]
[Annotator "NA"]
[ECO "D00"]
[WhiteElo "1892"]
[BlackElo "2042"]
[PlyCount "65"]
[EventDate "2025.02.23"]
[EventType "swiss"]
[EventCountry "MNE"]
[SourceTitle "playchess.com"]
[Source "ChessBase"]
[SourceQuality "1"]
[TimeControl "40/5400+30:1800+30"]

1. d4 {[%emt 0:00:11]} d5 {[%emt 0:00:06]} 2. Bf4 {[%emt 0:00:12]} Nf6 {[%emt 0:00:10]} 3. e3 {[%emt 0:00:03]} c5 {[%emt 0:00:07]} 4. c3 {[%emt 0:00:26]} Nc6 {[%emt 0:00:14]} 5. Nf3 {[%emt 0:00:22]} Qb6 {[%emt 0:00:14]} 6. Qc2 {[%emt 0:00:53]} cxd4 {[%emt 0:05:27]} 7. exd4 {[%emt 0:00:06]} g6 {[%emt 0:00:30]} 8. Bd3 {[%emt 0:00:56]} Bg7 {[%emt 0:02:17]} 9. h3 {[%emt 0:01:00]} O-O {[%emt 0:00:55]} 10. O-O {[%emt 0:00:10]} Re8 {[%emt 0:01:38]} 11. a4 {[%emt 0:01:13]} Ne4 {[%emt 0:09:03]} 12. Na3 {[%emt 0:02:58]} e5 {[%emt 0:03:53]} 13. dxe5 {[%emt 0:00:38]} Nxe5 {[%emt 0:01:05]} 14. Bxe4 {[%emt 0:00:28]} dxe4 {[%emt 0:00:46]} 15. Nxe5 {[%emt 0:00:07]} Bxe5 {[%emt 0:01:15]} 16. Nc4 {[%emt 0:02:50]} Qc5 {[%emt 0:02:31]} 17. Nxe5 {[%emt 0:00:10]} Rxe5 {[%emt 0:00:09]} 18. Bxe5 {[%emt 0:00:10]} Qxe5 {[%emt 0:00:07]} 19. Rfe1 {[%emt 0:00:03]} f5 {[%emt 0:01:47]} 20. Qb3+ {[%emt 0:01:00]} Kg7 {[%emt 0:00:26]} 21. Rad1 {[%emt 0:00:10]} b6 {[%emt 0:01:30]} 22. Qb4 {[%emt 0:00:29]} Ba6 {[%emt 0:01:55]} 23. Rd7+ {[%emt 0:00:30]} Kh6 {[%emt 0:00:12]} 24. c4 {[%emt 0:00:34]} Rc8 {[%emt 0:03:46]} 25. Qd2+ {[%emt 0:00:30]} f4 {[%emt 0:00:40]} 26. Rxa7 {[%emt 0:00:11]} Bxc4 {[%emt 0:01:48]} 27. Qd7 {[%emt 0:00:48]} Be6 {[%emt 0:00:11]} 28. Qxh7+ {[%emt 0:00:11]} Kg5 {[%emt 0:00:08]} 29. Qe7+ {[%emt 0:02:18]} Kf5 {[%emt 0:00:40]} 30. h4 {[%emt 0:00:12]} Kg4 {[%emt 0:01:13]} 31. Rxe4 {[%emt 0:00:46]} Rc1+ {[%emt 0:02:42]} 32. Kh2 {[%emt 0:00:05]} Qxe4 {[%emt 0:00:07]} 33. Qg5# {[%emt 0:00:30]} 1-0

[Event "FIDE World Junior U20-ch Girls 2025"]
[Site "Petrovac"]
[Date "2025.03.02"]
[Round "6.42"]
[White "Karacsonyi, Luca"]
[Black "Xu, Luna Yuexiu"]
[Result "0-1"]
[Annotator "NA"]
[ECO "C07"]
[WhiteElo "2026"]
[BlackElo "1903"]
[PlyCount "114"]
[EventDate "2025.02.23"]
[EventType "swiss"]
[EventCountry "MNE"]
[SourceTitle "playchess.com"]
[Source "ChessBase"]
[SourceQuality "1"]
[TimeControl "40/5400+30:1800+30"]

1. e4 {[%emt 0:00:03]} e6 {[%emt 0:00:29]} 2. d4 {[%emt 0:00:31]} d5 {[%emt 0:00:38]} 3. Nd2 {[%emt 0:01:04]} c5 {[%emt 0:00:59]} 4. exd5 {[%emt 0:00:52]} Qxd5 {[%emt 0:01:19]} 5. dxc5 {[%emt 0:01:25]} Bxc5 {[%emt 0:01:20]} 6. Ngf3 {[%emt 0:03:03]} Nc6 {[%emt 0:03:30]} 7. Bc4 {[%emt 0:02:22]} Qd7 {[%emt 0:01:05]} 8. O-O {[%emt 0:02:38]} Nf6 {[%emt 0:00:41]} 9. Qe2 {[%emt 0:03:46]} O-O {[%emt 0:02:21]} 10. Ne4 {[%emt 0:07:08]} Nxe4 {[%emt 0:05:16]} 11. Qxe4 {[%emt 0:00:17]} h6 {[%emt 0:05:20]} 12. Qg4 {[%emt 0:07:47]} Kh8 {[%emt 0:03:33]} 13. Qh5 {[%emt 0:03:26]} f5 {[%emt 0:14:09]} 14. Nh4 {[%emt 0:16:36]} Qf7 {[%emt 0:05:35]} 15. Ng6+ {[%emt 0:02:53]} Kg8 {[%emt 0:00:16]} 16. g4 {[%emt 0:09:56]} fxg4 {[%emt 0:04:03]} 17. Qxg4 {[%emt 0:04:24]} Qf5 {[%emt 0:02:18]} 18. Qxf5 {[%emt 0:07:09]} Rxf5 {[%emt 0:00:17]} 19. c3 {[%emt 0:02:53]} Kf7 {[%emt 0:05:25]} 20. Nh4 {[%emt 0:02:32]} Rf6 {[%emt 0:01:18]} 21. b4 {[%emt 0:01:32]} Bb6 {[%emt 0:01:22]} 22. Be3 {[%emt 0:01:26]} Bxe3 {[%emt 0:01:11]} 23. fxe3 {[%emt 0:00:05]} Ne5 {[%emt 0:01:49]} 24. Bb3 {[%emt 0:01:01]} b6 {[%emt 0:01:38]} 25. Nf5 {[%emt 0:06:42]} Ba6 {[%emt 0:05:18]} 26. b5 {[%emt 0:01:09]} Bc8 {[%emt 0:01:23]} 27. Rad1 {[%emt 0:01:37]} Bd7 {[%emt 0:01:49]} 28. Rd2 {[%emt 0:03:13]} Bxb5 {[%emt 0:04:12]} 29. Nd6+ {[%emt 0:02:20]} Ke7 {[%emt 0:00:22]} 30. Nxb5 {[%emt 0:00:38]} Nf3+ {[%emt 0:00:32]} 31. Rxf3 {[%emt 0:00:04]} Rxf3 {[%emt 0:00:12]} 32. Rd3 {[%emt 0:01:34]} Raf8 {[%emt 0:01:45]} 33. Nd4 {[%emt 0:01:05]} R3f6 {[%emt 0:02:30]} 34. Nc6+ {[%emt 0:00:28]} Kf7 {[%emt 0:00:59]} 35. Ne5+ {[%emt 0:01:36]} Kg8 {[%emt 0:00:41]} 36. Rd7 {[%emt 0:00:30]} Rc8 {[%emt 0:03:52]} 37. Rd3 {[%emt 0:02:08]} Re8 {[%emt 0:01:50]} 38. Rd6 {[%emt 0:00:30]} Ref8 {[%emt 0:02:42]} 39. Bxe6+ {[%emt 0:00:17]} Kh7 {[%emt 0:00:57]} 40. Ng4 {[%emt 0:01:13]} Rg6 {[%emt 0:00:30]} 41. e4 {[%emt 0:08:35]} Rff6 {[%emt 0:02:41]} 42. Bf5 {[%emt 0:04:52]} Rxd6 {[%emt 0:00:13]} 43. Kf2 {[%emt 0:01:51]} Kg8 {[%emt 0:00:14]} 44. Bxg6 {[%emt 0:00:38]} Rxg6 {[%emt 0:00:14]} 45. Ne3 {[%emt 0:00:38]} Rd6 {[%emt 0:00:56]} 46. Nd5 {[%emt 0:00:29]} Kf7 {[%emt 0:00:29]} 47. Ke3 {[%emt 0:00:38]} Rc6 {[%emt 0:00:51]} 48. Kd4 {[%emt 0:00:48]} Rc5 {[%emt 0:00:25]} 49. Ke5 {[%emt 0:03:15]} Ra5 {[%emt 0:00:31]} 50. Kd6 {[%emt 0:00:08]} Rxa2 {[%emt 0:00:17]} 51. e5 {[%emt 0:00:27]} Rd2 {[%emt 0:00:33]} 52. e6+ {[%emt 0:00:49]} Ke8 {[%emt 0:00:15]} 53. c4 {[%emt 0:00:13]} Rd4 {[%emt 0:00:42]} 54. e7 {[%emt 0:02:16]} Rxc4 {[%emt 0:00:52]} 55. Ne3 {[%emt 0:02:38]} Re4 {[%emt 0:00:17]} 56. Nf5 {[%emt 0:00:21]} g6 {[%emt 0:00:14]} 57. Ng7+ {[%emt 0:02:23]} Kf7 {[%emt 0:00:08]} 0-1

[Event "FIDE World Junior U20-ch Girls 2025"]
[Site "Petrovac"]
[Date "2025.03.02"]
[Round "6.43"]
[White "Popova, Kira"]
[Black "Shohradova, Lala"]
[Result "0-1"]
[Annotator "NA"]
[ECO "C02"]
[WhiteElo "1534"]
[BlackElo "2025"]
[PlyCount "88"]
[EventDate "2025.02.23"]
[EventType "swiss"]
[EventCountry "MNE"]
[SourceTitle "playchess.com"]
[Source "ChessBase"]
[SourceQuality "1"]
[TimeControl "40/5400+30:1800+30"]

1. e4 {[%emt 0:00:02]} e6 {[%emt 0:00:03]} 2. d4 {[%emt 0:00:07]} d5 {[%emt 0:00:01]} 3. e5 {[%emt 0:00:11]} c5 {[%emt 0:00:04]} 4. c3 {[%emt 0:00:05]} Qb6 {[%emt 0:00:10]} 5. Nf3 {[%emt 0:00:11]} Nc6 {[%emt 0:00:02]} 6. a3 {[%emt 0:00:13]} Bd7 {[%emt 0:00:05]} 7. b4 {[%emt 0:00:10]} cxd4 {[%emt 0:00:04]} 8. cxd4 {[%emt 0:00:06]} Rc8 {[%emt 0:00:02]} 9. Bb2 {[%emt 0:00:08]} Nge7 {[%emt 0:08:00]} 10. Nc3 {[%emt 0:00:47]} Na5 {[%emt 0:02:33]} 11. Na4 {[%emt 0:00:27]} Qc6 {[%emt 0:00:59]} 12. Nc5 {[%emt 0:00:36]} Nc4 {[%emt 0:00:25]} 13. Bc1 {[%emt 0:01:01]} b6 {[%emt 0:02:21]} 14. Nxd7 {[%emt 0:03:59]} Qxd7 {[%emt 0:00:02]} 15. Bd3 {[%emt 0:00:51]} b5 {[%emt 0:00:10]} 16. O-O {[%emt 0:02:40]} Nc6 {[%emt 0:00:47]} 17. Be3 {[%emt 0:18:20]} a5 {[%emt 0:02:27]} 18. bxa5 {[%emt 0:03:14]} N6xa5 {[%emt 0:00:19]} 19. Qe1 {[%emt 0:06:19]} Be7 {[%emt 0:03:07]} 20. Ra2 {[%emt 0:13:45]} O-O {[%emt 0:06:57]} 21. Bg5 {[%emt 0:04:23]} h6 {[%emt 0:04:33]} 22. Bxe7 {[%emt 0:02:09]} Qxe7 {[%emt 0:00:02]} 23. Bxc4 {[%emt 0:02:52]} Nxc4 {[%emt 0:00:02]} 24. Qb4 {[%emt 0:00:42]} Qd7 {[%emt 0:15:24]} 25. Rb1 {[%emt 0:09:04]} Nb6 {[%emt 0:02:45]} 26. h3 {[%emt 0:00:34]} Na4 {[%emt 0:00:12]} 27. Raa1 {[%emt 0:01:53]} Nc3 {[%emt 0:03:02]} 28. Rb3 {[%emt 0:02:03]} Rc4 {[%emt 0:01:16]} 29. Qa5 {[%emt 0:01:53]} Rfc8 {[%emt 0:20:00]} 30. Re1 {[%emt 0:06:34]} Qb7 {[%emt 0:05:50]} 31. Rxc3 {[%emt 0:07:18]} Rxc3 {[%emt 0:00:03]} 32. Rb1 {[%emt 0:00:23]} Rc1+ {[%emt 0:02:19]} 33. Rxc1 {[%emt 0:00:02]} Rxc1+ {[%emt 0:00:01]} 34. Kh2 {[%emt 0:00:04]} Rc4 {[%emt 0:00:38]} 35. Qd8+ {[%emt 0:02:11]} Kh7 {[%emt 0:00:02]} 36. Qd6 {[%emt 0:00:23]} Qc8 {[%emt 0:04:52]} 37. Qb6 {[%emt 0:01:54]} Rc2 {[%emt 0:00:33]} 38. Qxb5 {[%emt 0:04:54]} Rxf2 {[%emt 0:00:10]} 39. Qd3+ {[%emt 0:00:46]} Kg8 {[%emt 0:00:02]} 40. Nd2 {[%emt 0:03:13]} Qc1 {[%emt 0:00:55]} 41. Nb3 {[%emt 0:31:51]} Qxa3 {[%emt 0:33:25]} 42. Qg3 {[%emt 0:00:00]} Rb2 {[%emt 0:00:00]} 43. Nc5 {[%emt 0:00:00]} Qxg3+ {[%emt 0:00:00]} 44. Kxg3 {[%emt 0:00:00]} Rd2 {[%emt 0:00:00]} 0-1

[Event "FIDE World Junior U20-ch Girls 2025"]
[Site "Petrovac"]
[Date "2025.03.02"]
[Round "6.44"]
[White "Mickunaite, Agne"]
[Black "Blauhut, Anna"]
[Result "1-0"]
[Annotator "NA"]
[ECO "D31"]
[WhiteElo "1918"]
[BlackElo "1837"]
[PlyCount "59"]
[EventDate "2025.02.23"]
[EventType "swiss"]
[EventCountry "MNE"]
[SourceTitle "playchess.com"]
[Source "ChessBase"]
[SourceQuality "1"]
[TimeControl "40/5400+30:1800+30"]

1. c4 {[%emt 0:00:01]} e6 {[%emt 0:00:20]} 2. Nc3 {[%emt 0:00:06]} d5 {[%emt 0:00:33]} 3. d4 {[%emt 0:00:37]} Be7 {[%emt 0:00:57]} 4. cxd5 {[%emt 0:02:29]} exd5 {[%emt 0:00:11]} 5. Bf4 {[%emt 0:00:11]} c6 {[%emt 0:02:29]} 6. e3 {[%emt 0:00:43]} Bf5 {[%emt 0:01:24]} 7. Qb3 {[%emt 0:02:27]} Qb6 {[%emt 0:01:32]} 8. Qxb6 {[%emt 0:07:23]} axb6 {[%emt 0:00:17]} 9. f3 {[%emt 0:01:58]} Nf6 {[%emt 0:03:14]} 10. g4 {[%emt 0:04:50]} Bg6 {[%emt 0:00:50]} 11. Nge2 {[%emt 0:03:22]} Nbd7 {[%emt 0:04:22]} 12. Bg2 {[%emt 0:04:15]} b5 {[%emt 0:01:54]} 13. Ng3 {[%emt 0:07:21]} b4 {[%emt 0:09:07]} 14. Nce2 {[%emt 0:01:46]} b3 {[%emt 0:00:17]} 15. Kf2 {[%emt 0:08:08]} bxa2 {[%emt 0:04:38]} 16. Nc3 {[%emt 0:01:22]} O-O {[%emt 0:01:46]} 17. Nxa2 {[%emt 0:01:27]} Nb6 {[%emt 0:02:33]} 18. g5 {[%emt 0:02:57]} Nh5 {[%emt 0:03:52]} 19. Nxh5 {[%emt 0:00:08]} Bxh5 {[%emt 0:00:06]} 20. Nc3 {[%emt 0:01:41]} Nc4 {[%emt 0:03:05]} 21. b3 {[%emt 0:03:20]} Nd2 {[%emt 0:05:58]} 22. Rxa8 {[%emt 0:09:14]} Rxa8 {[%emt 0:00:10]} 23. e4 {[%emt 0:00:02]} Nxb3 {[%emt 0:01:27]} 24. exd5 {[%emt 0:00:22]} Bb4 {[%emt 0:06:17]} 25. dxc6 {[%emt 0:04:28]} bxc6 {[%emt 0:00:13]} 26. Ne2 {[%emt 0:00:53]} Bg6 {[%emt 0:12:15]} 27. Be5 {[%emt 0:03:55]} Rd8 {[%emt 0:04:40]} 28. f4 {[%emt 0:10:23]} Bh5 {[%emt 0:05:42]} 29. Rb1 {[%emt 0:03:13]} Bxe2 {[%emt 0:04:51]} 30. Rxb3 {[%emt 0:00:40]} 1-0